bitfinex/quotes_ETHUSD_20250629
["timestamp","ask_amount","ask_price","bid_price","bid_amount"]
[1751235914800,3.24061773,2468.7,2468.0,4.04999102]
[1751235915006,6.02570323,2468.6,2468.5,0.2024]
[1751235915700,2.785,2468.6,2468.5,0.2024]
[1751235915901,3.24070323,2468.6,2468.5,0.2024]
[1751235916107,6.02570323,2468.6,2468.5,0.2024]
[1751235916678,2.785,2468.6,2468.5,0.2024]
[1751235917486,3.24057617,2468.7,2468.5,0.2024]
[1751235917685,2.785,2468.6,2468.5,0.2024]
[1751235918378,3.24057128,2468.8,2468.5,0.2024]
[1751235918578,2.785,2468.7,2468.1,3.24331021]
[1751235918774,6.02558221,2468.7,2468.1,3.24331021]
[1751235919005,2.785,2468.7,2468.6,0.2024]
[1751235919303,6.02557196,2468.7,2468.6,0.2024]
[1751235919605,2.785,2468.7,2468.6,0.2024]
[1751235919905,1.41233897,2469.1,2468.6,0.2024]
[1751235920133,3.24012221,2469.1,2468.4,3.24092621]
[1751235920415,2.785,2469.2,2468.8,3.24042977]
[1751235920622,2.784,2469.1,2468.7,3.24052435]
[1751235920903,2.784,2469.1,2468.6,3.24069928]
[1751235921119,2.784,2469.2,2469.0,3.24006788]
[1751235921320,2.784,2469.2,2469.1,3.24004698]
[1751235921476,2.784,2469.2,2468.3,0.7955]
[1751235921477,6.02394054,2469.2,2468.3,0.7955]
[1751235921682,3.24006732,2469.1,2468.3,4.03650565]
[1751235921986,3.24033797,2468.9,2468.3,0.7955]
[1751235922312,2.784,2468.9,2468.6,3.24062102]
[1751235922610,0.55,2469.7,2468.3,0.7955]
[1751235922812,21.156,2469.6,2469.0,3.24009056]
[1751235922982,24.39549545,2469.6,2469.0,3.24009056]
[1751235923185,3.2395349,2469.5,2468.9,3.2402525]
[1751235923407,3.23975525,2469.4,2468.7,3.24047437]
[1751235923615,3.23981024,2469.3,2468.7,3.24047437]
[1751235923812,3.23981024,2469.3,2468.3,1.92627284]
[1751235924130,3.24027809,2469.0,2468.4,3.2408925]
[1751235924424,2.784,2468.9,2468.6,3.24058941]
[1751235924634,2.784,2469.1,2468.6,0.73992835]
[1751235924825,2.784,2469.1,2468.7,0.91773095]
[1751235925027,2.784,2469.1,2468.8,4.15814395]
[1751235925327,2.784,2469.1,2469.0,3.2401782]
[1751235925526,16.12988568,2469.6,2469.0,4.16050195]
[1751235925696,16.12988568,2469.6,2469.1,0.92032375]
[1751235925896,10.992,2469.5,2469.1,0.92032375]
[1751235926094,16.61982382,2469.5,2468.8,1.13077284]
[1751235926293,3.23966381,2469.4,2469.1,1.13077284]
[1751235926542,0.8137,2469.9,2469.2,0.91985706]
[1751235926710,3.2388677,2470.0,2469.4,3.23956884]
[1751235926908,3.2388677,2470.0,2469.5,0.91985706]
[1751235926909,2.784,2469.9,2469.5,0.91985706]
[1751235927112,2.784,2469.9,2469.6,0.91985706]
[1751235927113,3.23925982,2469.7,2469.6,0.91985706]
[1751235927418,6.02325982,2469.7,2469.6,2.42755125]
[1751235927616,2.1109,2469.9,2469.6,2.42755125]
[1751235927617,5.34995436,2469.9,2469.6,2.42755125]
[1751235927947,10.981,2469.8,2469.7,0.91985706]
[1751235928113,1.3131,2470.4,2469.7,0.91985706]
[1751235928114,3.23855583,2470.3,2469.7,0.91985706]
[1751235928313,2.784,2470.2,2470.1,2.26081865]
[1751235928513,2.784,2470.2,2470.1,0.91985706]
[1751235928846,3.23779641,2470.9,2470.3,3.23847305]
[1751235928847,2.784,2470.5,2470.3,3.23847305]
[1751235929044,2.784,2470.5,2470.4,2.47246508]
[1751235929345,2.783,2470.5,2470.4,4.15809156]
[1751235929549,2.783,2470.5,2470.4,3.93381916]
[1751235929846,2.696,2470.5,2470.4,0.91985706]
[1751235930004,2.696,2470.5,2470.4,1.12145706]
[1751235930338,1.0339,2471.4,2470.4,1.12145706]
[1751235930543,5.93352411,2471.1,2470.7,3.11358188]
[1751235930704,3.32796027,2471.1,2470.8,4.03343894]
[1751235930903,10.123,2471.7,2470.9,0.91985706]
[1751235931104,2.696,2471.6,2471.5,2.33481454]
[1751235931337,5.9327697,2471.6,2471.5,0.91985706]
[1751235931803,5.9327697,2471.6,2471.5,3.25216417]
[1751235932006,5.9327697,2471.6,2471.5,0.91985706]
[1751235932203,5.16601093,2471.6,2471.5,0.91985706]
[1751235932437,3.23673436,2471.7,2471.5,3.25216417]
[1751235932644,3.2365917,2471.8,2471.6,0.91985706]
[1751235932842,5.93163875,2471.7,2471.6,2.33230711]
[1751235933049,3.2367697,2471.6,2471.5,2.33230711]
[1751235933205,3.2367697,2471.6,2471.5,3.26570951]
[1751235933405,6.57911055,2471.6,2471.5,3.26570951]
[1751235933702,3.23658784,2471.8,2471.5,0.9334024]
[1751235933908,3.23658784,2471.8,2471.7,2.33280947]
[1751235934107,3.23658784,2471.8,2471.7,3.26621187]
[1751235934408,0.7552,2472.8,2471.9,3.23635712]
[1751235934629,5.93085325,2472.3,2472.2,1.55428762]
[1751235934937,3.7073,2472.3,2472.2,3.26483383]
[1751235935138,6.94315325,2472.3,2472.2,3.26483383]
[1751235935350,6.94315325,2472.3,2472.2,0.9334024]
[1751235935516,4.79815325,2472.3,2472.2,2.09822858]
[1751235935727,15.64515325,2472.3,2472.2,2.09822858]
[1751235935902,1.0123,2472.3,2470.7,3.23790618]
[1751235936107,3.23653866,2471.8,2470.9,0.773]
[1751235936306,1.11353,2472.2,2470.9,0.773]
[1751235936553,2.694,2472.1,2471.2,13.23725142]
[1751235936706,2.694,2472.1,2470.9,0.773]
[1751235936907,8.14,2472.0,2470.9,0.773]
[1751235937129,3.23618729,2472.1,2470.9,4.01061461]
[1751235937329,3.23664511,2471.7,2470.9,4.01063718]
[1751235937532,3.23693346,2471.5,2470.9,0.773]
[1751235937730,3.56045121,2471.6,2471.0,3.23755169]
[1751235937938,3.23624881,2472.0,2470.9,4.01066786]
[1751235938108,2.694,2471.9,2471.3,3.23711374]
[1751235938310,3.23688255,2471.6,2470.9,4.01065654]
[1751235938516,2.694,2471.9,2470.9,0.773]
[1751235938720,2.694,2471.9,2471.1,3.23741074]
[1751235938922,3.50598298,2471.8,2471.2,3.23727563]
[1751235939109,3.50598298,2471.8,2470.9,0.773]
[1751235939110,0.2694,2471.8,2471.3,3.23713761]
[1751235939310,2.694,2471.7,2471.3,3.23713761]
[1751235939542,0.2694,2471.8,2470.9,0.773]
[1751235939543,0.7836,2472.3,2471.0,3.23755564]
[1751235939746,2.694,2472.0,2471.5,3.23690058]
[1751235939946,13.35880112,2472.4,2471.7,3.23655039]
[1751235940122,2.694,2472.0,2471.1,3.23742462]
[1751235940442,1.33588011,2472.3,2471.8,3.23641606]
[1751235940611,1.33588011,2472.3,2472.2,0.2016]
[1751235940947,4.02988011,2472.3,2472.2,0.2016]
[1751235941141,3.23619233,2472.1,2472.0,0.2016]
[1751235941314,3.96279957,2472.1,2472.0,0.2016]
[1751235941513,3.96279957,2472.1,2471.0,3.23746954]
[1751235941514,3.23671327,2471.7,2471.0,3.23746954]
[1751235941722,3.23692651,2471.5,2471.0,3.23755564]
[1751235941918,2.694,2471.6,2471.0,3.23755564]
[1751235941919,5.9308185,2471.6,2471.0,3.23755564]
[1751235942124,2.694,2471.6,2471.4,0.2016]
[1751235942336,3.28705676,2471.6,2470.6,1.5254]
[1751235942536,8.102,2471.5,2470.2,1.5254]
[1751235942749,3.23777225,2470.9,2470.0,10.0]
[1751235942951,2.694,2470.8,2469.8,1.5254]
[1751235943130,2.694,2470.7,2470.3,3.23839035]
[1751235943451,2.694,2470.7,2469.8,2.67794]
[1751235943663,3.23808105,2470.6,2470.0,3.23886084]
[1751235943962,2.694,2470.7,2469.9,3.2389792]
[1751235944184,10.115,2471.2,2469.9,3.23899753]
[1751235944339,2.694,2471.1,2470.8,3.23773028]
[1751235944546,2.694,2471.1,2469.9,13.23899753]
[1751235944733,2.694,2471.0,2470.0,10.0]
[1751235944940,2.694,2471.0,2470.8,3.23773258]
[1751235945352,10.115,2471.2,2470.7,3.237944]
[1751235945557,2.694,2471.1,2469.8,11.5254]
[1751235945885,3.9749,2471.1,2469.9,1.15254]
[1751235946166,3.9749,2471.1,2469.8,1.5254]
[1751235946379,3.9749,2471.1,2470.2,3.23851543]
[1751235946380,3.23780044,2470.9,2470.2,3.23851543]
[1751235946549,3.23783844,2470.8,2470.2,3.23850346]
[1751235946754,2.694,2470.7,2470.2,3.23850346]
[1751235947082,6.5252386,2470.7,2469.8,1.5254]
[1751235947236,2.694,2470.7,2469.8,1.5254]
[1751235947432,3.23758025,2471.0,2469.9,3.23891655]
[1751235947666,2.694,2470.9,2470.0,3.23875594]
[1751235947967,2.694,2470.9,2469.8,1.5254]
[1751235948133,1.567,2470.7,2469.8,1.5254]
[1751235948476,3.23829618,2470.5,2469.8,4.76447881]
[1751235948684,1.567,2470.7,2469.8,1.5254]
[1751235948839,3.2386321,2470.2,2469.6,3.23927358]
[1751235949039,2.694,2470.2,2469.8,3.23905222]
[1751235949278,2.694,2470.2,2469.5,3.24149098]
[1751235949448,2.694,2470.2,2469.8,3.23904858]
[1751235949646,2.694,2470.2,2469.7,3.2391746]
[1751235949866,0.37492966,2470.1,2469.6,3.23937462]
[1751235950069,0.37492966,2470.0,2469.5,0.002]
[1751235950354,3.23912867,2469.8,2469.5,0.002]
[1751235950553,0.37492966,2469.7,2469.5,0.002]
[1751235950754,0.37522925,2469.6,2469.5,0.002]
[1751235950999,3.61462024,2469.6,2469.5,0.002]
[1751235951296,6.99400411,2469.6,2469.5,0.002]
[1751235951588,6.85862024,2469.6,2469.5,0.002]
[1751235952083,3.61462024,2469.6,2469.5,0.002]
[1751235952265,6.30862024,2469.6,2469.5,0.002]
[1751235952661,2.98222925,2469.6,2469.5,0.002]
[1751235952865,2.98222925,2469.6,2469.5,0.2044]
[1751235953263,4.40888413,2469.6,2469.5,0.002]
[1751235953557,2.98222925,2469.6,2469.5,0.002]
[1751235954191,0.37522925,2469.6,2469.5,3.24152217]
[1751235954389,3.23869527,2470.2,2469.6,3.23931347]
[1751235954690,0.37549897,2470.1,2469.5,0.002]
[1751235954914,0.37549897,2470.0,2469.5,0.002]
[1751235955118,0.37549897,2469.9,2469.5,0.002]
[1751235955412,0.37549897,2469.8,2469.5,0.002]
[1751235955611,0.37549897,2469.7,2469.5,0.002]
[1751235955811,3.23903972,2469.9,2469.5,0.002]
[1751235956017,0.37564413,2469.8,2469.5,0.002]
[1751235956213,3.23903972,2469.9,2469.5,0.002]
[1751235956418,3.60030634,2470.0,2469.5,0.002]
[1751235956419,1.09726276,2469.8,2469.5,0.002]
[1751235956603,3.23939099,2469.6,2469.5,0.002]
[1751235956802,6.22315473,2469.6,2469.5,0.002]
[1751235957007,2.98376374,2469.6,2469.5,0.002]
[1751235957208,2.608,2469.6,2469.5,0.002]
[1751235957411,5.84739099,2469.6,2469.5,0.002]
[1751235957720,6.43213009,2469.6,2469.5,0.002]
[1751235957922,7.98953009,2469.6,2469.5,0.002]
[1751235958815,8.53953009,2469.6,2469.5,0.002]
[1751235959123,16.91737337,2469.6,2469.5,0.002]
[1751235959325,16.54153009,2469.6,2469.5,0.002]
[1751235959493,16.91725811,2469.6,2469.5,0.002]
[1751235960307,6.30725811,2469.6,2469.5,0.002]
[1751235960801,0.37572802,2469.6,2469.5,0.002]
[1751235960999,1.5903,2470.1,2469.5,0.002]
[1751235961306,0.37565373,2470.0,2469.8,1.5482]
[1751235961506,1.5913,2471.1,2470.8,3.23778736]
[1751235961707,0.37544352,2471.0,2470.8,3.2378076]
[1751235961905,0.37544352,2470.9,2470.1,3.23873527]
[1751235962105,0.37537446,2470.8,2470.7,3.23794875]
[1751235962332,0.37537446,2471.0,2470.9,3.23768667]
[1751235962648,0.001,2471.1,2471.0,3.23755564]
[1751235962847,0.001,2471.1,2471.0,20.22104364]
[1751235963053,0.001,2471.1,2471.0,3.23755564]
[1751235963200,0.001,2471.1,2471.0,3.43915564]
[1751235964211,0.001,2471.1,2471.0,13.59833564]
[1751235964545,0.001,2471.1,2471.0,14.85685564]
[1751235964703,0.001,2471.1,2471.0,22.84485564]
[1751235964936,0.001,2471.1,2471.0,29.08175564]
[1751235965149,0.001,2471.1,2471.0,22.84485564]
[1751235965481,0.001,2471.1,2471.0,12.84485564]
[1751235966176,0.001,2471.1,2471.0,22.84485564]
[1751235966332,0.001,2471.1,2471.0,25.04452964]
[1751235966756,0.001,2471.1,2471.0,22.84485564]
[1751235966959,0.001,2471.1,2471.0,14.85685564]
[1751235967162,0.001,2471.1,2471.0,22.82485564]
[1751235967466,0.001,2471.1,2471.0,12.82485564]
[1751235967630,0.001,2471.1,2471.0,1.6193]
[1751235967837,0.001,2471.1,2469.9,3.23889651]
[1751235967838,0.001,2471.1,2470.7,3.23794875]
[1751235968034,3.23766813,2471.0,2470.2,3.23859704]
[1751235968245,0.32386681,2470.9,2470.0,3.23876742]
[1751235968450,2.607,2471.0,2470.6,3.23798421]
[1751235968653,0.001,2471.1,2470.5,3.23816857]
[1751235968838,2.608,2471.1,2470.1,7.957]
[1751235969034,2.608,2471.1,2470.4,3.23825378]
[1751235969241,0.001,2471.1,2471.0,3.23755564]
[1751235969465,0.001,2471.1,2471.0,4.80815564]
[1751235969664,0.001,2471.1,2471.0,5.1319112]
[1751235970157,0.001,2471.1,2471.0,36.1236152]
[1751235970544,0.001,2471.1,2471.0,45.1319112]
[1751235970749,0.001,2471.1,2471.0,15.1319112]
[1751235971273,0.001,2471.1,2471.0,14.80815564]
[1751235971458,0.001,2471.1,2471.0,4.80815564]
[1751235971662,0.001,2471.1,2471.0,12.74615564]
[1751235974263,0.001,2471.1,2471.0,12.94775564]
[1751235974481,0.001,2471.1,2471.0,19.53465564]
[1751235974637,0.001,2471.1,2471.0,15.28185564]
[1751235974853,0.001,2471.1,2471.0,12.94775564]
[1751235975046,0.001,2471.1,2471.0,5.00975564]
[1751235975458,0.001,2471.1,2471.0,12.91475564]
[1751235978065,0.001,2471.1,2471.0,33.47490164]
[1751235978301,0.001,2471.1,2471.0,52.91475564]
[1751235978996,0.001,2471.1,2471.0,22.91475564]
[1751235979356,0.001,2471.1,2471.0,15.00975564]
[1751235979558,0.001,2471.1,2471.0,11.30515564]
[1751235980384,0.001,2471.1,2471.0,21.30515564]
[1751235980590,0.001,2471.1,2471.0,3.43915564]
[1751235980810,0.001,2471.1,2471.0,11.29415564]
[1751235981021,0.001,2471.1,2471.0,12.84225564]
[1751235982279,0.001,2471.1,2471.0,22.84225564]
[1751235982482,0.001,2471.1,2471.0,37.03044864]
[1751235982819,0.001,2471.1,2471.0,28.34569464]
[1751235983385,0.001,2471.1,2471.0,22.81725564]
[1751235984618,0.001,2471.1,2471.0,21.26115564]
[1751235984912,0.001,2471.1,2471.0,16.93470564]
[1751235985123,0.001,2471.1,2471.0,51.05955564]
[1751235985325,0.001,2471.1,2471.0,52.67815564]
[1751235985492,0.005,2472.0,2471.9,3.23637687]
[1751235985690,0.005,2472.0,2471.9,32.41724387]
[1751235985889,0.005,2472.0,2471.9,25.19897687]
[1751235986088,0.005,2472.0,2471.9,29.60614087]
[1751235987192,0.005,2472.0,2471.9,38.35553787]
[1751235987395,0.005,2472.0,2471.9,36.52404287]
[1751235987602,0.005,2472.0,2471.9,14.85497687]
[1751235987801,0.005,2472.0,2471.9,22.67297687]
[1751235988210,0.005,2472.0,2471.9,25.75991687]
[1751235988417,0.005,2472.0,2471.9,22.67297687]
[1751235988643,0.005,2472.0,2471.9,3.23637687]
[1751235988799,0.005,2472.0,2471.9,11.04637687]
[1751235990029,0.005,2472.0,2471.5,1.5782]
[1751235990248,0.005,2472.0,2471.1,3.23736571]
[1751235990402,0.006,2472.0,2471.6,3.2366874]
[1751235990730,0.006,2472.0,2471.8,3.23648173]
[1751235991028,0.006,2472.0,2471.9,11.04137687]
[1751235991230,0.006,2472.0,2471.7,3.2366309]
[1751235991410,0.006,2472.0,2471.1,1.5615]
[1751235991614,0.006,2472.0,2471.7,3.23658642]
[1751235991799,0.006,2472.0,2471.2,1.15615]
[1751235992126,0.006,2472.0,2471.1,1.5615]
[1751235992329,0.006,2472.0,2471.5,3.23681792]
[1751235992529,0.006,2472.0,2471.7,3.23653553]
[1751235992836,0.006,2472.0,2471.8,3.2364889]
[1751235993130,0.006,2472.0,2471.8,7.783]
[1751235993503,0.006,2472.0,2471.9,3.23637687]
[1751235993899,0.006,2472.0,2471.5,11.00882674]
[1751235994100,0.006,2472.0,2471.6,11.00876218]
[1751235994403,0.006,2472.0,2471.9,3.23637687]
[1751235994604,0.006,2472.0,2471.6,7.772]
[1751235995020,0.006,2472.0,2471.9,0.2016]
[1751235995956,0.006,2472.0,2471.9,3.43797687]
[1751235996158,0.006,2472.0,2471.9,0.2016]
[1751235996532,0.006,2472.0,2471.9,3.43797687]
[1751235997854,0.006,2472.0,2471.9,13.43797687]
[1751235999152,0.006,2472.0,2471.9,38.51278187]
[1751235999358,0.006,2472.0,2471.9,40.30409687]
[1751235999533,0.006,2472.0,2471.9,3.43797687]
[1751235999734,0.006,2472.0,2471.5,3.23678735]
[1751236000064,0.006,2472.0,2471.7,3.23655392]
[1751236000227,0.006,2472.0,2471.9,3.23637687]
[1751236000424,0.006,2472.0,2471.9,10.96737687]
[1751236000624,0.006,2472.0,2471.9,7.731]
[1751236001261,3.23653454,2471.8,2470.7,1.5745]
[1751236001435,3.24224756,2472.0,2470.8,7.72]
[1751236001436,2.432,2471.9,2470.8,7.72]
[1751236001635,1.5578,2471.7,2471.2,3.23726965]
[1751236001837,1.5578,2471.7,2471.3,7.72]
[1751236002029,2.432,2471.9,2471.5,3.23680468]
[1751236002354,2.432,2471.9,2471.4,7.719]
[1751236002355,5.66845935,2471.9,2471.4,7.719]
[1751236002561,2.432,2471.9,2471.4,10.95602234]
[1751236003063,5.66839436,2471.9,2471.4,10.95602234]
[1751236003242,2.432,2471.9,2471.6,3.23675816]
[1751236003757,1.5638,2472.0,2471.4,7.719]
[1751236003958,1.5638,2472.0,2471.4,10.95601848]
[1751236004159,1.5638,2472.0,2471.5,3.23678349]
[1751236004544,1.5638,2472.0,2471.4,7.719]
[1751236004545,1.5638,2472.0,2471.6,3.23668475]
[1751236004843,1.5638,2472.0,2471.7,10.93761989]
[1751236005053,1.5638,2472.0,2471.7,7.701]
[1751236005264,1.5638,2472.0,2471.1,3.23733453]
[1751236005265,3.23674314,2471.7,2471.1,3.23733453]
[1751236005449,3.23674314,2471.7,2471.2,10.93827203]
[1751236005650,3.2365548,2471.8,2471.2,10.93827203]
[1751236005878,3.2365548,2471.8,2471.3,3.2371416]
[1751236006047,3.2365548,2471.8,2471.2,10.93825639]
[1751236006377,4.80008526,2472.0,2471.2,7.701]
[1751236006378,3.23666462,2471.7,2471.2,7.701]
[1751236006580,3.23687409,2471.6,2471.0,3.23949441]
[1751236006745,1.6455,2471.4,2471.1,7.678]
[1751236007075,1.6455,2471.4,2471.1,3.23738079]
[1751236007278,1.6455,2471.4,2471.0,0.002]
[1751236007279,3.23717606,2471.3,2471.0,0.002]
[1751236007574,4.88258113,2471.4,2471.0,0.002]
[1751236007881,3.23717426,2471.3,2471.0,0.002]
[1751236008049,2.3769538,2471.4,2471.0,0.002]
[1751236008246,2.432,2471.3,2471.0,0.002]
[1751236008580,5.66916509,2471.3,2471.0,0.002]
[1751236008951,3.23742462,2471.1,2471.0,0.002]
[1751236009369,4.80754718,2471.1,2471.0,0.002]
[1751236009740,3.23807981,2470.6,2470.5,0.2036]
[1751236009990,7.58618779,2470.6,2470.5,0.002]
[1751236010198,8.13618779,2470.6,2470.5,0.002]
[1751236010368,7.58618779,2470.6,2470.5,0.002]
[1751236010687,8.13618779,2470.6,2470.5,0.002]
[1751236011357,3.23879206,2470.1,2469.5,3.24151082]
[1751236011665,1.5923,2470.4,2469.5,3.2414778]
[1751236011865,2.349,2470.0,2469.6,3.23939099]
[1751236012408,2.349,2470.0,2469.5,3.24146786]
[1751236012574,1.6524,2469.9,2469.5,0.002]
[1751236012892,0.40014,2469.8,2469.5,0.002]
[1751236013100,2.349,2469.7,2469.5,0.002]
[1751236013296,5.58826874,2469.7,2469.5,0.002]
[1751236013858,3.23939099,2469.6,2469.5,0.002]
[1751236014062,2.349,2469.7,2469.5,0.002]
[1751236014907,3.23927451,2469.7,2469.5,0.002]
[1751236015198,2.349,2469.6,2469.5,3.24152217]
[1751236015796,11.7674,2469.9,2469.7,3.23925709]
[1751236016100,10.115,2469.9,2469.8,3.23912867]
[1751236016692,10.115,2469.9,2469.6,3.23931476]
[1751236016895,1.5191,2469.8,2469.5,0.002]
[1751236017062,1.5191,2469.8,2469.5,3.24146354]
[1751236017259,1.5191,2469.8,2469.5,0.002]
[1751236017463,4.40266982,2469.7,2469.5,0.002]
[1751236017660,1.16341,2469.7,2469.5,0.002]
[1751236018076,4.40273881,2469.7,2469.5,0.002]
[1751236018273,3.23939099,2469.6,2469.5,0.002]
[1751236018496,7.14229099,2469.6,2469.5,0.002]
[1751236018697,9.05768818,2469.6,2469.5,0.002]
[1751236019209,9.60768818,2469.6,2469.5,0.002]
[1751236020416,9.05768818,2469.6,2469.5,0.002]
[1751236020710,1.5539,2469.6,2469.5,0.002]
[1751236021009,3.9039,2469.6,2469.5,0.002]
[1751236021389,3.9039,2469.6,2469.5,3.24152217]
[1751236021712,1.5539,2469.6,2469.5,0.002]
[1751236021885,3.9039,2469.6,2469.5,0.002]
[1751236022087,7.53368099,2469.6,2469.5,0.002]
[1751236022280,8.08368099,2469.6,2469.5,0.002]
[1751236022479,1.5539,2469.6,2469.5,0.002]
[1751236022810,3.9039,2469.6,2469.5,0.002]
[1751236023839,3.9039,2469.6,2469.5,3.24152217]
[1751236023976,3.9039,2469.6,2469.5,0.002]
[1751236024419,1.5539,2469.6,2469.5,3.24152217]
[1751236024884,3.9039,2469.6,2469.5,3.24152217]
[1751236025523,3.9039,2469.6,2469.5,0.002]
[1751236025832,4.29429,2469.6,2469.5,0.002]
[1751236026029,1.698476,2469.6,2469.5,0.002]
[1751236026340,4.048476,2469.6,2469.5,0.002]
[1751236027196,7.28786699,2469.6,2469.5,0.002]
[1751236027402,7.83786699,2469.6,2469.5,0.002]
[1751236028837,4.93786699,2469.6,2469.5,0.002]
[1751236029001,14.84286699,2469.6,2469.5,0.002]
[1751236029331,4.049476,2469.6,2469.5,0.002]
[1751236029537,7.28886699,2469.6,2469.5,0.002]
[1751236030097,14.83586699,2469.6,2469.5,0.002]
[1751236030509,2.495576,2469.6,2469.5,0.002]
[1751236030748,2.445576,2469.6,2469.5,3.24152217]
[1751236031220,2.445576,2469.6,2469.5,0.002]
[1751236031430,0.094576,2469.6,2469.5,0.002]
[1751236031624,0.094576,2469.6,2469.5,3.24152217]
[1751236031823,0.094576,2469.6,2469.5,3.88963131]
[1751236032311,0.094576,2469.6,2469.5,3.24152217]
[1751236032516,0.094576,2469.6,2469.5,3.44392217]
[1751236032938,0.094576,2469.6,2469.5,5.04802217]
[1751236033737,0.094576,2469.6,2469.5,3.44392217]
[1751236034337,0.094576,2469.6,2469.5,0.2044]
[1751236034662,0.094576,2469.6,2469.5,3.44392217]
[1751236035149,0.094576,2469.6,2469.5,7.01227865]
[1751236035753,0.094576,2469.6,2469.5,6.80987865]
[1751236035958,0.094576,2469.6,2469.5,6.14152217]
[1751236036287,0.094576,2469.6,2469.5,0.002]
[1751236036456,0.094576,2469.6,2469.5,3.24152217]
[1751236037342,0.094576,2469.6,2469.5,0.002]
[1751236037545,2.361576,2469.6,2469.5,0.002]
[1751236037718,3.28129229,2469.6,2469.5,0.002]
[1751236038368,2.68850404,2469.6,2469.5,0.002]
[1751236038919,2.361576,2469.6,2469.5,0.002]
[1751236039447,2.68877272,2469.6,2469.5,0.002]
[1751236040235,2.68977272,2469.6,2469.5,0.002]
[1751236040659,6.47916371,2469.6,2469.5,0.002]
[1751236040970,9.78383718,2469.6,2469.5,0.002]
[1751236041550,6.96683718,2469.6,2469.5,0.002]
[1751236041751,0.42277272,2469.6,2469.5,0.002]
[1751236042072,0.095576,2469.6,2469.5,4.76882217]
[1751236043976,0.095576,2469.6,2469.5,3.24152217]
[1751236044544,2.268,2470.5,2469.5,1.5524]
[1751236044545,0.001,2470.5,2469.5,1.5524]
[1751236044744,0.001,2470.5,2470.3,4.78887305]
[1751236044745,0.32867343,2470.4,2470.3,4.78887305]
[1751236044992,0.001,2470.5,2470.4,3.23834196]
[1751236045473,0.001,2470.5,2470.4,10.79434196]
[1751236045844,0.001,2470.5,2470.4,10.99594196]
[1751236046289,0.001,2470.5,2470.4,11.99594196]
[1751236047356,0.001,2470.5,2470.4,4.43994196]
[1751236048560,0.001,2470.5,2470.4,1.2016]
[1751236048767,2.268,2470.5,2470.4,1.0]
[1751236049302,5.50621088,2470.5,2469.7,3.23918315]
[1751236049473,3.23842558,2470.4,2469.8,0.2024]
[1751236049789,3.23842558,2470.4,2469.7,3.23918315]
[1751236049790,0.87456365,2470.4,2469.7,3.23919368]
[1751236049993,0.2024,2470.3,2469.8,0.2024]
[1751236050200,0.2024,2470.3,2469.8,3.44150562]
[1751236050400,0.2024,2470.3,2469.9,3.23898435]
[1751236050589,0.2024,2470.3,2469.8,3.44148748]
[1751236050781,0.2024,2470.3,2469.8,0.2024]
[1751236050982,0.2024,2470.3,2469.8,3.4415098]
[1751236051807,0.7732829,2470.3,2469.8,0.2024]
[1751236052004,0.2024,2470.3,2469.8,0.2024]
[1751236052205,3.44090302,2470.3,2469.8,0.2024]
[1751236052417,0.2024,2470.3,2469.8,0.2024]
[1751236052572,2.268,2470.5,2470.2,3.23860416]
[1751236052766,2.268,2470.5,2470.3,3.23844996]
[1751236053106,2.268,2470.5,2470.4,3.43994196]
[1751236053401,2.268,2470.5,2470.4,0.2016]
[1751236053603,2.268,2470.5,2470.4,3.43994196]
[1751236054211,0.001,2470.5,2470.4,4.26197258]
[1751236054872,0.001,2470.5,2470.4,3.43994196]
[1751236055134,0.001,2470.5,2470.4,7.7096]
[1751236055437,0.001,2470.5,2470.4,0.2016]
[1751236055637,0.001,2470.5,2470.4,3.43994196]
[1751236055934,0.001,2470.5,2470.4,4.76014196]
[1751236056341,0.001,2470.5,2470.4,3.23834196]
[1751236056908,0.001,2470.5,2470.4,3.88601304]
[1751236057838,0.001,2470.5,2470.4,5.55171304]
[1751236059623,0.001,2470.5,2470.4,45.55171304]
[1751236060211,0.001,2470.5,2470.4,46.10171304]
[1751236061238,0.001,2470.5,2470.4,25.87234704]
[1751236061722,0.001,2470.5,2470.4,45.55171304]
[1751236062041,0.001,2470.5,2470.4,46.10171304]
[1751236062221,0.001,2470.5,2470.4,37.04558004]
[1751236062753,0.001,2470.5,2470.4,46.10171304]
[1751236062938,0.001,2470.5,2470.4,49.00171304]
[1751236063622,0.001,2470.5,2470.4,48.45171304]
[1751236064254,0.001,2470.5,2470.4,33.13785604]
[1751236064562,0.001,2470.5,2470.4,6.13834196]
[1751236064857,0.001,2470.5,2470.4,13.59534196]
[1751236065361,0.001,2470.5,2470.4,13.59634196]
[1751236065930,0.001,2470.5,2470.4,13.79794196]
[1751236066147,0.001,2470.5,2470.4,6.33994196]
[1751236066328,0.001,2470.5,2470.4,13.79194196]
[1751236067549,0.001,2470.5,2470.4,6.33994196]
[1751236067765,0.001,2470.5,2470.4,13.78894196]
[1751236071566,0.001,2470.5,2470.4,42.75353696]
[1751236071729,0.001,2470.5,2470.4,55.31094196]
[1751236071931,0.001,2470.5,2470.4,34.73801596]
[1751236072739,0.001,2470.5,2470.4,36.05602896]
[1751236073264,0.001,2470.5,2470.4,29.72803896]
[1751236073462,0.001,2470.5,2470.4,28.17829096]
[1751236073665,0.001,2470.5,2470.4,34.36432196]
[1751236073830,0.001,2470.5,2470.4,31.08972396]
[1751236074027,0.001,2470.5,2470.4,27.71225796]
[1751236074640,0.001,2470.5,2470.4,25.31094196]
[1751236074844,0.001,2470.5,2470.4,55.31094196]
[1751236075078,0.001,2470.5,2470.4,55.86094196]
[1751236075540,0.001,2471.5,2471.2,3.23729362]
[1751236075732,0.001,2471.5,2471.2,66.3925915]